bitfinex/quotes_BTCUSD_20220731
["timestamp","ask_amount","ask_price","bid_price","bid_amount"]
[1659257117663,0.31373426,23654.0,23653.0,0.09386]
[1659257117888,0.00922926,23654.0,23653.0,0.09386]
[1659257118334,0.00922926,23654.0,23653.0,0.15286]
[1659257118840,0.05367926,23654.0,23653.0,0.069]
[1659257119070,0.35818426,23654.0,23653.0,0.069]
[1659257119582,0.35818426,23654.0,23653.0,0.10306578]
[1659257119797,0.31373426,23654.0,23653.0,0.04406578]
[1659257120229,0.31977481,23654.0,23653.0,0.01]
[1659257120468,0.31373426,23654.0,23653.0,0.066]
[1659257121182,0.31977481,23654.0,23653.0,0.066]
[1659257121628,0.32300992,23654.0,23653.0,0.066]
[1659257122110,0.31373426,23654.0,23653.0,0.066]
[1659257122356,0.31373426,23654.0,23653.0,0.03863261]
[1659257122577,0.31373426,23654.0,23653.0,0.066]
[1659257123709,0.31373426,23654.0,23653.0,0.01]
[1659257124391,0.31373426,23654.0,23653.0,0.066]
[1659257125098,0.00922926,23654.0,23653.0,0.066]
[1659257125322,0.05367926,23654.0,23653.0,0.066]
[1659257125558,0.35818426,23654.0,23653.0,0.066]
[1659257126024,0.35818426,23654.0,23653.0,0.01]
[1659257126269,0.76544159,23654.0,23653.0,0.01]
[1659257126489,0.76544159,23654.0,23653.0,0.066]
[1659257127681,0.76544159,23654.0,23653.0,0.01]
[1659257128383,0.76544159,23654.0,23653.0,0.08]
[1659257129385,0.81544159,23654.0,23653.0,0.08]
[1659257129582,0.81544159,23654.0,23653.0,0.01]
[1659257130445,0.81544159,23654.0,23653.0,0.08]
[1659257131903,0.81544159,23654.0,23653.0,0.01]
[1659257132541,0.81544159,23654.0,23653.0,0.08]
[1659257132749,1.14718159,23654.0,23653.0,0.08]
[1659257132954,1.19718159,23654.0,23653.0,0.08]
[1659257134146,1.19718159,23654.0,23653.0,0.01]
[1659257134375,1.18718159,23654.0,23653.0,0.01]
[1659257134584,0.88718159,23654.0,23653.0,0.01]
[1659257134844,0.85544159,23654.0,23653.0,0.01]
[1659257135703,0.81544159,23654.0,23653.0,0.01]
[1659257136356,0.83544159,23654.0,23653.0,0.085]
[1659257136575,0.86718159,23654.0,23653.0,0.085]
[1659257136802,0.91718159,23654.0,23653.0,0.085]
[1659257137010,0.86718159,23654.0,23653.0,0.085]
[1659257137492,0.83544159,23654.0,23653.0,0.085]
[1659257137748,0.81544159,23654.0,23653.0,0.01]
[1659257137977,0.76544159,23654.0,23653.0,0.01]
[1659257138421,0.78544159,23654.0,23653.0,0.085]
[1659257139763,0.76544159,23654.0,23653.0,0.01]
[1659257140413,0.78544159,23654.0,23653.0,0.085]
[1659257141760,0.76544159,23654.0,23653.0,0.01]
[1659257142435,0.78544159,23654.0,23653.0,0.085]
[1659257144233,0.76544159,23654.0,23653.0,0.01]
[1659257144455,0.78544159,23654.0,23653.0,0.085]
[1659257145589,0.76544159,23654.0,23653.0,0.01]
[1659257146267,0.78144159,23654.0,23653.0,0.083]
[1659257147595,0.76544159,23654.0,23653.0,0.01]
[1659257148279,0.78144159,23654.0,23653.0,0.083]
[1659257149173,0.06659778,23648.0,23646.0,0.22397029]
[1659257149409,0.9,23653.0,23640.0,0.61577]
[1659257149410,0.40725733,23647.0,23640.0,0.61577]
[1659257149642,0.40725733,23647.0,23640.0,0.4044]
[1659257150092,0.00922926,23644.0,23640.0,0.615771]
[1659257151655,0.41648659,23644.0,23640.0,0.4044]
[1659257151936,0.71176233,23643.0,23640.0,0.4044]
[1659257152158,0.181345,23642.0,23640.0,0.4044]
[1659257152377,0.304505,23641.0,23640.0,8.862e-05]
[1659257152596,0.40725733,23643.0,23639.0,0.29158997]
[1659257152812,0.304505,23642.0,23637.0,0.002]
[1659257153041,0.40725733,23643.0,23637.0,0.01477541]
[1659257153295,0.40725733,23643.0,23637.0,0.002]
[1659257154441,0.48625733,23643.0,23637.0,0.002]
[1659257155586,0.00922926,23640.0,23637.0,0.002]
[1659257155794,0.00922926,23640.0,23638.0,0.03406578]
[1659257156458,0.08522926,23640.0,23638.0,0.03406578]
[1659257156674,0.09450492,23640.0,23637.0,0.002]
[1659257157383,0.08522926,23640.0,23638.0,0.02863261]
[1659257157588,0.01246437,23640.0,23637.0,0.002]
[1659257157801,0.01850492,23640.0,23637.0,0.002]
[1659257158510,0.00922926,23640.0,23637.0,0.03063261]
[1659257158957,0.01850492,23640.0,23637.0,0.03063261]
[1659257159396,0.01850492,23640.0,23638.0,0.00114358]
[1659257159654,0.00922926,23640.0,23637.0,0.002]
[1659257159813,0.06659778,23638.0,23637.0,0.002]
[1659257160020,0.00922926,23640.0,23637.0,0.002]
[1659257160218,0.31378066,23639.0,23637.0,0.002]
[1659257160424,0.06659778,23638.0,23637.0,0.002]
[1659257161220,0.07582704,23638.0,23637.0,0.002]
[1659257161427,0.00922926,23638.0,23637.0,0.00314363]
[1659257161859,0.00922926,23638.0,23637.0,0.002]
[1659257162352,0.00922926,23638.0,23637.0,0.00314363]
[1659257162579,0.00922926,23638.0,23637.0,0.002]
[1659257162805,0.00422926,23638.0,23637.0,0.002]
[1659257163521,0.00422926,23638.0,23636.0,0.04331437]
[1659257163741,0.00422926,23638.0,23636.0,0.01353808]
[1659257163977,0.41148659,23638.0,23636.0,0.01353808]
[1659257164171,0.06659778,23637.0,23636.0,0.01353808]
[1659257166618,0.00422926,23637.0,23636.0,0.04217069]
[1659257166844,0.00422926,23637.0,23636.0,0.01353808]
[1659257167762,0.00375678,23637.0,23636.0,0.01353808]
[1659257168774,0.00375678,23637.0,23636.0,0.02618156]
[1659257168996,0.00375678,23637.0,23636.0,0.63068656]
[1659257169230,0.00375678,23637.0,23636.0,0.33068656]
[1659257169721,0.00375678,23637.0,23636.0,0.32599156]
[1659257170139,0.00375678,23637.0,23636.0,0.02599156]
[1659257170581,0.00375678,23637.0,23636.0,0.31785308]
[1659257171564,0.00375678,23637.0,23636.0,0.01334808]
[1659257171961,0.00375678,23637.0,23636.0,0.78775389]
[1659257172168,0.00375678,23637.0,23636.0,1.08775389]
[1659257172365,0.5873,23648.0,23636.0,1.08775389]
[1659257172366,0.33175,23647.0,23636.0,1.08775389]
[1659257172612,0.40725733,23646.0,23639.0,0.21138]
[1659257172813,0.3,23645.0,23639.0,0.21138]
[1659257173023,0.40725733,23644.0,23639.0,0.26138]
[1659257173275,0.40725733,23644.0,23639.0,0.56138]
[1659257173630,0.40725733,23644.0,23639.0,0.51138]
[1659257174076,0.40725733,23644.0,23639.0,0.56138]
[1659257174206,0.40725733,23644.0,23639.0,0.51138]
[1659257174410,0.48625733,23644.0,23639.0,0.51138]
[1659257174642,0.40725733,23643.0,23639.0,0.56138]
[1659257174881,0.00927566,23642.0,23639.0,0.51138]
[1659257175327,0.00927566,23642.0,23639.0,0.21138]
[1659257176442,0.06427566,23642.0,23639.0,0.21138]
[1659257176668,0.304505,23641.0,23639.0,0.21138]
[1659257176886,0.06427566,23642.0,23639.0,0.21138]
[1659257177103,0.304505,23641.0,23639.0,0.21138]
[1659257177316,0.06427566,23642.0,23639.0,0.21138]
[1659257177608,0.40725733,23643.0,23640.0,0.03406578]
[1659257177810,0.304505,23642.0,23640.0,0.08406578]
[1659257178012,0.40725733,23645.0,23641.0,0.354505]
[1659257178219,0.40725733,23648.0,23641.0,0.354505]
[1659257178458,0.079,23643.0,23642.0,0.211347]
[1659257178701,0.079,23643.0,23642.0,0.815852]
[1659257178977,0.079,23643.0,23642.0,0.511347]
[1659257179208,0.0323799,23643.0,23642.0,1.63575281]
[1659257179652,1.1513,23655.0,23643.0,0.105652]
[1659257179866,0.40725733,23654.0,23644.0,1.76715733]
[1659257180107,0.40725733,23654.0,23645.0,0.51132]
[1659257180334,0.40725733,23654.0,23645.0,0.52396348]
[1659257180560,0.40725733,23654.0,23646.0,0.01264348]
[1659257181254,0.304505,23653.0,23645.0,0.51132]
[1659257181487,0.40725733,23652.0,23645.0,0.51132]
[1659257182188,0.40725733,23652.0,23645.0,0.21132]
[1659257182429,0.304505,23651.0,23645.0,0.21132]
[1659257182680,0.40725733,23651.0,23645.0,0.21132]
[1659257184303,0.42125733,23651.0,23645.0,0.21132]
[1659257185239,0.40725733,23650.0,23645.0,0.21132]
[1659257185460,0.3,23649.0,23642.0,0.31293411]
[1659257185673,0.40725733,23648.0,23642.0,0.3]
[1659257185893,0.40725733,23648.0,23641.0,1.223861]
[1659257186123,0.98605733,23648.0,23641.0,1.223861]
[1659257186366,0.40725733,23647.0,23642.0,0.053]
[1659257187349,0.70725733,23647.0,23642.0,0.053]
[1659257187556,0.35,23643.0,23638.0,0.4169]
[1659257187793,0.481345,23645.0,23638.0,0.4169]
[1659257188011,0.71176233,23644.0,23638.0,0.4169]
[1659257188226,0.3,23645.0,23638.0,0.4169]
[1659257188227,0.58860233,23643.0,23638.0,0.4169]
[1659257188458,0.58860233,23643.0,23638.0,0.078]
[1659257188459,0.70725733,23642.0,23638.0,0.078]
[1659257188694,0.72103799,23641.0,23638.0,0.078]
[1659257188916,0.58860233,23640.0,23638.0,0.078]
[1659257189150,0.71176233,23639.0,23638.0,0.078]
[1659257189374,0.40725733,23639.0,23638.0,0.078]
[1659257189591,0.40725733,23639.0,23637.0,0.02863261]
[1659257189821,0.40725733,23639.0,23636.0,0.01334808]
[1659257189822,0.00323511,23639.0,23636.0,0.01334808]
[1659257190061,0.40725733,23641.0,23636.0,0.22474808]
[1659257190394,0.40725733,23641.0,23637.0,0.01264348]
[1659257190525,0.40725733,23641.0,23638.0,0.02863261]
[1659257190736,0.40725733,23643.0,23638.0,0.02863261]
[1659257190966,0.40725733,23643.0,23639.0,0.01264348]
[1659257191180,0.31378066,23642.0,23639.0,0.01264348]
[1659257191391,0.41653299,23642.0,23639.0,0.01264348]
[1659257191830,0.304505,23641.0,23639.0,0.01264348]
[1659257192057,0.181345,23640.0,23639.0,0.01264348]
[1659257192282,0.41653299,23642.0,23639.0,0.09264348]
[1659257192513,0.304505,23641.0,23639.0,0.09264348]
[1659257192735,0.41653299,23642.0,23639.0,0.09264348]
[1659257192998,0.304505,23641.0,23639.0,0.09264348]
[1659257193220,0.41653299,23642.0,23639.0,0.09452499]
[1659257193439,0.41653299,23642.0,23639.0,0.09264348]
[1659257193653,0.41653299,23642.0,23639.0,0.01264348]
[1659257194338,0.304505,23641.0,23639.0,0.09264348]
[1659257194551,0.181345,23640.0,23639.0,0.09264348]
[1659257194780,0.304505,23640.0,23639.0,0.08]
[1659257194998,0.41653299,23642.0,23639.0,0.08]
[1659257195215,0.304505,23641.0,23639.0,0.08]
[1659257195444,0.181345,23640.0,23639.0,0.08]
[1659257195670,0.41653299,23642.0,23636.0,0.22474808]
[1659257195896,0.304505,23641.0,23636.0,0.22474808]
[1659257196128,0.41653299,23642.0,23636.0,0.22474808]
[1659257196345,0.41653299,23642.0,23636.0,0.30274808]
[1659257197035,0.304505,23641.0,23636.0,0.30274808]
[1659257197249,0.40725733,23640.0,23636.0,0.30274808]
[1659257197467,0.40725733,23640.0,23636.0,0.09134808]
[1659257197694,0.40725733,23640.0,23636.0,0.01334808]
[1659257198408,0.40725733,23640.0,23636.0,0.09234808]
[1659257198625,0.40725733,23640.0,23637.0,0.02881089]
[1659257198843,0.40725733,23640.0,23637.0,0.02863261]
[1659257199062,0.40725733,23640.0,23636.0,0.09234808]
[1659257199533,0.00927566,23639.0,23636.0,0.09234808]
[1659257199751,0.00927566,23639.0,23636.0,0.01334808]
[1659257200428,0.00927566,23639.0,23636.0,0.09234808]
[1659257200980,0.40725733,23640.0,23636.0,0.09234808]
[1659257201434,0.40725733,23640.0,23637.0,0.304505]
[1659257201684,0.00927566,23639.0,23636.0,0.09234808]
[1659257201919,0.00927566,23639.0,23636.0,0.01334808]
[1659257202152,0.40725733,23640.0,23637.0,0.03406578]
[1659257202596,0.40725733,23640.0,23637.0,0.03054292]
[1659257202837,0.41329788,23640.0,23637.0,0.03054292]
[1659257203294,0.41329788,23640.0,23636.0,0.09234808]
[1659257203511,0.41329788,23640.0,23637.0,0.02863261]
[1659257203740,0.41329788,23640.0,23636.0,0.09234808]
[1659257203741,0.41329788,23640.0,23636.0,0.01334808]
[1659257204415,0.41329788,23640.0,23637.0,0.03054292]
[1659257204845,0.41329788,23640.0,23636.0,0.09234808]
[1659257205524,0.41329788,23640.0,23637.0,0.02863261]
[1659257206675,0.40725733,23640.0,23637.0,0.02863261]
[1659257207367,0.40725733,23642.0,23637.0,0.02863261]
[1659257208046,0.304505,23641.0,23636.0,0.01334808]
[1659257208263,0.70725733,23641.0,23636.0,0.01334808]
[1659257208491,0.40725733,23641.0,23636.0,0.01334808]
[1659257209834,0.40725733,23641.0,23637.0,0.079]
[1659257210066,0.00675797,23640.0,23637.0,0.079]
[1659257210290,0.00604055,23639.0,23637.0,0.079]
[1659257210504,0.40725733,23641.0,23637.0,0.10763261]
[1659257210956,0.00675797,23640.0,23637.0,0.10763261]
[1659257211186,0.00675797,23640.0,23636.0,0.01334808]
[1659257211408,0.00675797,23640.0,23636.0,0.09234808]
[1659257211660,0.00675797,23640.0,23637.0,0.02863261]
[1659257212307,0.40725733,23641.0,23637.0,0.02863261]
[1659257212535,0.40725733,23641.0,23636.0,0.01334808]
[1659257214392,0.40725733,23641.0,23636.0,0.09234808]
[1659257214890,0.40725733,23641.0,23636.0,0.17134808]
[1659257215562,0.40725733,23641.0,23636.0,0.01334808]
[1659257216508,0.40725733,23641.0,23636.0,0.09234808]
[1659257216955,0.40725733,23641.0,23636.0,0.07991]
[1659257217438,0.40569133,23641.0,23636.0,0.07991]
[1659257217661,0.40516933,23641.0,23636.0,0.00091]
[1659257218552,0.40516933,23641.0,23636.0,0.07991]
[1659257219006,0.304505,23640.0,23636.0,0.07991]
[1659257219228,0.40725733,23640.0,23636.0,0.07991]
[1659257219481,0.01279852,23639.0,23636.0,0.07991]
[1659257219863,0.01279852,23639.0,23636.0,0.00091]
[1659257220400,0.06659778,23637.0,23636.0,0.00091]
[1659257220401,0.06659778,23637.0,23636.0,0.07991]
[1659257220649,1.07836011,23637.0,23636.0,0.07991]
[1659257221813,1.07836011,23637.0,23636.0,0.00091]
[1659257222179,1.11012011,23637.0,23636.0,0.00091]
[1659257222381,1.16912011,23637.0,23636.0,0.00091]
[1659257222625,1.21912011,23637.0,23636.0,0.00091]
[1659257223363,1.51912011,23637.0,23636.0,0.00091]
[1659257223577,1.51912011,23637.0,23635.0,0.0031]
[1659257223733,1.47616128,23636.0,23635.0,0.002]
[1659257223950,2.01946128,23636.0,23635.0,0.002]
[1659257224383,2.06946128,23636.0,23635.0,0.002]
[1659257224612,1.01659778,23635.0,23634.0,0.002]
[1659257224833,0.04555,23632.0,23631.0,0.002]
[1659257225098,0.04555,23632.0,23630.0,0.002]
[1659257225099,0.86659778,23631.0,23630.0,0.002]
[1659257225335,0.45,23628.0,23626.0,0.002]
[1659257225560,0.65520011,23627.0,23626.0,0.002]
[1659257226686,0.58860233,23627.0,23626.0,0.002]
[1659257227364,0.65140085,23627.0,23626.0,0.002]
[1659257227590,1.44470085,23627.0,23626.0,0.002]
[1659257228061,0.06659778,23626.0,23621.0,0.0011]
[1659257228289,1.47385511,23625.0,23622.0,0.00019332]
[1659257228509,1.47385511,23625.0,23618.0,0.42453528]
[1659257228510,0.06659778,23623.0,23618.0,0.34018861]
[1659257228727,0.40725733,23622.0,23618.0,0.34018861]
[1659257229157,0.00604055,23621.0,23618.0,0.01243528]
[1659257229381,0.00604055,23621.0,23615.0,0.01574348]
[1659257229382,0.40725733,23620.0,23615.0,0.01574348]
[1659257229624,0.40725733,23620.0,23612.0,0.811614]
[1659257229625,0.06659778,23616.0,23612.0,0.0031]
[1659257229839,0.47385511,23615.0,23612.0,0.0031]
[1659257230311,0.77836011,23615.0,23612.0,0.0031]
[1659257230789,0.77836011,23615.0,23614.0,1.9981]
[1659257230790,0.7185203,23615.0,23614.0,1.9981]
[1659257231008,0.72456085,23615.0,23614.0,1.9981]
[1659257231702,0.16659778,23613.0,23612.0,0.0031]
[1659257231987,0.16659778,23613.0,23609.0,0.0011]
[1659257231988,0.06659778,23610.0,23609.0,0.0011]
[1659257232224,0.71176233,23610.0,23602.0,1.8581666]
[1659257232447,0.40725733,23609.0,23602.0,1.8581666]
[1659257232684,0.40725733,23609.0,23604.0,0.5]
[1659257232936,0.40725733,23612.0,23607.0,0.5]
[1659257233163,0.40725733,23612.0,23608.0,0.604505]
[1659257233396,0.48725733,23613.0,23611.0,0.45]
[1659257233610,0.08,23613.0,23612.0,0.05]
[1659257233843,0.08,23613.0,23612.0,0.354505]
[1659257234327,0.40725733,23616.0,23612.0,0.38313761]
[1659257234574,0.40725733,23616.0,23612.0,0.09127609]
[1659257235037,0.40725733,23616.0,23612.0,0.06264348]
[1659257235038,0.00604055,23615.0,23612.0,0.06264348]
[1659257235270,0.41329788,23615.0,23612.0,0.05]
[1659257235531,0.005,23613.0,23608.0,0.00018956]
[1659257235746,0.40725733,23612.0,23607.0,0.3848]
[1659257236008,0.40725733,23612.0,23608.0,0.304505]
[1659257236225,0.00604055,23611.0,23606.0,0.01264348]
[1659257236455,0.41329788,23611.0,23606.0,0.01264348]
[1659257236737,0.40725733,23612.0,23607.0,0.304505]
[1659257236979,0.55944637,23611.0,23606.0,0.31714848]
[1659257237192,0.55944637,23611.0,23607.0,0.01264348]
[1659257237418,0.55944637,23611.0,23608.0,0.02863261]
[1659257237884,0.55944637,23611.0,23608.0,0.33313761]
[1659257238100,0.55944637,23611.0,23610.0,0.85]
[1659257238319,0.55944637,23611.0,23610.0,0.604505]
[1659257238535,0.55944637,23611.0,23610.0,0.654505]
[1659257238767,0.55944637,23611.0,23610.0,0.604505]
[1659257238990,0.55944637,23611.0,23610.0,0.599505]
[1659257239429,0.55944637,23611.0,23610.0,0.649505]
[1659257240634,0.55944637,23611.0,23610.0,0.599505]
[1659257241303,0.55944637,23611.0,23610.0,0.299505]
[1659257242015,0.55944637,23611.0,23609.0,0.3]
[1659257242238,0.55944637,23611.0,23610.0,0.354918]
[1659257242455,0.55944637,23611.0,23610.0,0.304918]
[1659257242675,0.55944637,23611.0,23610.0,0.604918]
[1659257243137,0.55944637,23611.0,23610.0,0.304918]
[1659257243366,0.55944637,23611.0,23609.0,0.304918]
[1659257243849,0.55944637,23611.0,23610.0,0.05]
[1659257244086,0.55944637,23611.0,23609.0,0.304918]
[1659257244373,0.55944637,23611.0,23610.0,0.4]
[1659257244560,0.55944637,23611.0,23610.0,0.704918]
[1659257245955,0.55944637,23611.0,23610.0,0.654918]
[1659257246201,0.55944637,23611.0,23610.0,0.704918]
[1659257246877,0.55944637,23611.0,23610.0,1.11217533]
[1659257247115,0.55944637,23611.0,23610.0,1.16217533]
[1659257247341,0.55944637,23611.0,23610.0,1.21981881]
[1659257248551,1.107,23626.0,23615.0,0.045]
[1659257248788,0.40725733,23624.0,23616.0,0.70725733]
[1659257249026,0.97255733,23626.0,23617.0,1.01217533]
[1659257249250,0.97255733,23626.0,23619.0,0.045]
[1659257249485,0.97255733,23626.0,23620.0,0.304918]
[1659257249486,0.40725733,23626.0,23620.0,0.304918]
[1659257249712,0.40725733,23626.0,23621.0,0.604918]
[1659257249944,0.40725733,23626.0,23620.0,0.01264348]
[1659257250168,0.40725733,23626.0,23620.0,0.31264348]
[1659257250398,0.48625733,23626.0,23620.0,0.31264348]
[1659257251613,0.48625733,23626.0,23620.0,0.36264348]
[1659257251832,0.40725733,23626.0,23620.0,0.36264348]
[1659257252050,0.40725733,23626.0,23620.0,0.31264348]
[1659257252507,0.47325733,23626.0,23620.0,0.31764348]
[1659257252755,0.47325733,23626.0,23620.0,0.36764348]
[1659257252989,0.47325733,23626.0,23620.0,0.31764348]
[1659257253456,0.47325733,23626.0,23621.0,0.604918]
[1659257253687,0.40725733,23626.0,23622.0,0.354918]
[1659257253903,0.40725733,23628.0,23625.0,0.05]
[1659257254126,0.42005585,23628.0,23624.0,0.3]
[1659257254349,0.40725733,23628.0,23623.0,0.05]
[1659257254599,0.074,23626.0,23622.0,0.011]
[1659257255099,0.074,23626.0,23623.0,0.02863261]
[1659257255315,0.48125733,23626.0,23623.0,0.02863261]
[1659257255788,0.40725733,23626.0,23623.0,0.02863261]
[1659257256474,0.01279852,23625.0,23623.0,0.03963261]
[1659257256713,0.48125733,23626.0,23623.0,0.03963261]
[1659257257452,0.48125733,23626.0,23623.0,0.011]
[1659257257687,0.72497385,23625.0,23617.0,1.55964348]
[1659257257905,0.42005585,23625.0,23618.0,0.40725733]
[1659257258341,0.49605585,23625.0,23618.0,0.40725733]
[1659257259127,0.40725733,23624.0,23617.0,1.59565733]
[1659257259349,0.40725733,23624.0,23618.0,0.604918]
[1659257259571,0.40725733,23624.0,23619.0,0.304918]
[1659257259791,0.40725733,23625.0,23620.0,0.604918]
[1659257260015,0.40725733,23625.0,23619.0,0.211546]
[1659257260458,0.48825733,23625.0,23620.0,0.019]
[1659257260679,0.076,23625.0,23620.0,0.019]
[1659257261384,0.076,23625.0,23620.0,0.319]
[1659257261829,0.40725733,23626.0,23619.0,0.61880333]
[1659257262511,0.076,23625.0,23620.0,0.019]
[1659257263204,0.07090928,23625.0,23620.0,0.019]
[1659257263426,0.37090928,23625.0,23620.0,0.019]
[1659257263644,0.40725733,23624.0,23616.0,0.3822]
[1659257263876,0.40725733,23624.0,23617.0,0.71217533]
[1659257264087,0.40725733,23624.0,23617.0,0.40725733]
[1659257264989,0.40725733,23624.0,23618.0,0.604918]
[1659257265242,0.40725733,23624.0,23618.0,0.3]
[1659257265675,0.40725733,23624.0,23617.0,0.40725733]
[1659257266621,0.40725733,23624.0,23617.0,0.43425733]
[1659257267302,0.40725733,23624.0,23618.0,0.3]
[1659257267738,0.40725733,23624.0,23617.0,0.40725733]
[1659257267974,0.40725733,23624.0,23618.0,0.3]
[1659257268865,0.40725733,23624.0,23618.0,0.35]
[1659257269101,0.40725733,23624.0,23618.0,0.561556]
[1659257269571,0.40725733,23624.0,23618.0,0.211556]
[1659257270022,0.03177,23629.0,23619.0,0.72481881]
[1659257270023,0.57547,23629.0,23619.0,0.72481881]
[1659257270237,0.70725733,23628.0,23619.0,1.01260081]
[1659257270506,0.077,23624.0,23619.0,1.01260081]
[1659257270729,0.077,23624.0,23620.0,0.304918]
[1659257270849,0.077,23624.0,23621.0,0.02863261]
[1659257271056,0.62013661,23624.0,23622.0,0.304918]
[1659257271280,0.62013661,23624.0,23621.0,0.02863261]
[1659257271281,0.63293513,23624.0,23621.0,0.02863261]
[1659257271510,0.63293513,23624.0,23619.0,0.40725733]
[1659257271721,0.55593513,23624.0,23619.0,0.40725733]
[1659257272398,0.55593513,23624.0,23619.0,0.43325733]
[1659257272613,0.96319246,23624.0,23619.0,0.026]
[1659257273748,0.96319246,23624.0,23618.0,0.211556]
[1659257274448,0.95039394,23624.0,23618.0,0.287556]
[1659257274647,0.95039394,23624.0,23619.0,0.304918]
[1659257274859,0.95039394,23624.0,23618.0,0.287556]
[1659257275084,0.95039394,23624.0,23619.0,0.304918]
[1659257275461,0.95039394,23624.0,23618.0,0.287556]
[1659257275676,0.95039394,23624.0,23619.0,0.304918]
[1659257275898,0.95039394,23624.0,23618.0,0.211556]
[1659257276343,0.95039394,23624.0,23619.0,0.026]
[1659257277297,0.95039394,23624.0,23619.0,0.021]
[1659257277741,0.95039394,23624.0,23618.0,0.211556]
[1659257278416,0.3,23623.0,23618.0,0.235556]
[1659257278642,0.03178,23622.0,23618.0,0.024]
[1659257278866,0.42005585,23621.0,23618.0,0.024]
[1659257279091,0.304918,23620.0,23618.0,0.024]
[1659257279325,0.01279852,23621.0,23618.0,0.05263261]
[1659257279588,0.01279852,23621.0,23618.0,0.024]
[1659257279792,0.01279852,23621.0,23615.0,0.42325521]
[1659257280011,0.01279852,23621.0,23615.0,0.88051254]
[1659257280238,0.01279852,23621.0,23615.0,0.83038633]
[1659257280460,0.5809,23623.0,23616.0,0.3]
[1659257280675,0.40725733,23622.0,23615.0,0.88238633]
[1659257281402,0.70725733,23622.0,23615.0,0.88238633]
[1659257281830,0.70725733,23622.0,23615.0,0.83038633]
[1659257282536,0.70725733,23622.0,23615.0,0.89438633]
[1659257283198,0.70725733,23622.0,23615.0,0.94438633]
[1659257283427,0.70725733,23622.0,23616.0,0.3]
[1659257283855,0.70725733,23622.0,23615.0,0.89438633]
[1659257284069,0.40725733,23622.0,23615.0,0.89438633]
[1659257284297,0.40725733,23622.0,23615.0,0.83038633]
[1659257284520,0.40725733,23622.0,23616.0,0.064]
[1659257285678,0.40725733,23622.0,23615.0,0.83038633]
[1659257286180,0.40725733,23622.0,23616.0,0.304918]
[1659257286420,0.40725733,23622.0,23616.0,0.023]
[1659257287789,0.40725733,23622.0,23615.0,0.83038633]
[1659257288021,0.005,23620.0,23614.0,0.00010613]
[1659257288266,0.3,23621.0,23614.0,0.00010613]
[1659257288267,0.005,23617.0,23614.0,0.00010613]
[1659257288491,0.005,23617.0,23616.0,0.016]
[1659257288492,0.04945,23617.0,23616.0,0.016]
[1659257288714,0.354368,23617.0,23616.0,0.016]
[1659257288952,1.06162533,23617.0,23616.0,0.016]
[1659257289193,0.76162533,23617.0,23616.0,0.016]
[1659257289410,1.09341533,23617.0,23616.0,0.006]
[1659257289631,0.80621385,23617.0,23616.0,0.006]
[1659257289880,0.50129585,23617.0,23611.0,0.00014496]
[1659257290118,0.40725733,23616.0,23610.0,0.05]
[1659257290566,0.40725733,23616.0,23609.0,1.15897997]
[1659257290784,0.40725733,23616.0,23610.0,0.05]
[1659257290998,0.005,23614.0,23610.0,0.05]
[1659257291216,0.42005585,23613.0,23609.0,0.55614497]
[1659257291687,0.42005585,23613.0,23609.0,0.556]
[1659257292149,0.304918,23612.0,23609.0,0.556]
[1659257292413,0.40725733,23612.0,23609.0,0.556]
[1659257292600,0.47885511,23611.0,23610.0,0.073]
[1659257293525,0.005,23612.0,23610.0,0.073]
[1659257293966,0.41225733,23612.0,23609.0,0.02863261]
[1659257294222,0.41225733,23612.0,23606.0,0.3]
[1659257294449,0.41225733,23612.0,23610.0,0.08]
[1659257295404,0.07159778,23611.0,23610.0,0.08]
[1659257295634,0.47885511,23611.0,23610.0,0.08]
[1659257295872,0.47885511,23611.0,23605.0,0.3826]
[1659257296099,0.005,23609.0,23605.0,0.3826]
[1659257296341,0.41225733,23609.0,23606.0,0.02875839]
[1659257296606,0.41225733,23609.0,23606.0,0.00012578]
[1659257296840,0.40725733,23608.0,23606.0,0.00012578]
[1659257297080,0.07159778,23607.0,23602.0,1.8581666]
[1659257297306,0.40725733,23606.0,23603.0,0.304918]
[1659257297535,0.00675797,23605.0,23604.0,0.304918]
[1659257297756,0.40725733,23606.0,23604.0,0.304918]
[1659257297977,0.5866,23609.0,23604.0,0.304918]
[1659257297978,0.5816,23609.0,23604.0,0.304918]
[1659257298205,0.98885733,23609.0,23605.0,0.304918]
[1659257298654,0.98885733,23609.0,23605.0,0.01264348]
[1659257298655,0.98408733,23609.0,23605.0,0.01264348]
[1659257298879,0.98408733,23609.0,23605.0,0.31756148]
[1659257299330,0.40725733,23609.0,23605.0,0.31756148]
[1659257299555,0.40725733,23609.0,23606.0,0.02869411]
[1659257300035,0.5793,23615.0,23608.0,0.05]
[1659257300297,0.98655733,23615.0,23609.0,0.045]
[1659257300513,0.98655733,23615.0,23609.0,0.35764348]
[1659257300969,0.98655733,23615.0,23609.0,0.05764348]
[1659257301210,0.98655733,23615.0,23609.0,0.35764348]
[1659257301502,0.98655733,23615.0,23609.0,0.05764348]
[1659257301725,0.98655733,23615.0,23608.0,0.50725733]
[1659257301940,0.98655733,23615.0,23609.0,0.3]
[1659257302400,1.04555733,23615.0,23609.0,0.3]
[1659257302625,1.01217533,23614.0,23608.0,0.003]
[1659257302840,0.40725733,23613.0,23608.0,0.303]
[1659257303309,0.005,23610.0,23608.0,0.003]
[1659257303547,0.31771652,23609.0,23608.0,0.003]
[1659257303778,0.41225733,23610.0,23607.0,0.02869411]
[1659257304004,1.1331,23615.0,23608.0,0.304918]
[1659257304261,0.40725733,23614.0,23608.0,0.211644]
[1659257304715,0.40725733,23614.0,23608.0,0.511644]
[1659257304951,0.40725733,23614.0,23609.0,0.3]
[1659257305176,0.40725733,23614.0,23608.0,0.511644]
[1659257305652,0.40725733,23614.0,23607.0,0.041]
[1659257305653,0.40725733,23613.0,23607.0,0.041]
[1659257305877,0.40725733,23613.0,23607.0,0.00018957]
[1659257305878,0.309918,23612.0,23607.0,0.00018957]
[1659257306123,0.40725733,23611.0,23607.0,0.00018957]
[1659257306343,0.01279852,23610.0,23607.0,0.00018957]
[1659257306659,0.40725733,23609.0,23607.0,0.00018957]
[1659257306905,0.07159778,23608.0,23602.0,2.27926516]